bitfinex-derivatives/quotes_BNBF0:USTF0_20250617
["timestamp","ask_amount","ask_price","bid_price","bid_amount"]
[1750128364688,2.81727665,653.5,653.4,1.136]
[1750128364990,0.52775335,653.49,653.4,1.136]
[1750128366092,2.2895233,653.5,653.4,1.136]
[1750128366393,2.28925767,653.49,653.4,1.136]
[1750128366591,2.28904107,653.48,653.4,1.136]
[1750128366789,0.99195028,653.47,653.4,1.136]
[1750128366993,2.81668799,653.49,653.4,1.136]
[1750128367194,1.82477086,653.48,653.4,1.136]
[1750128367391,0.52764675,653.48,653.4,1.136]
[1750128368090,1.66643538,653.48,653.4,1.136]
[1750128368290,3.95550977,653.48,653.4,1.136]
[1750128368495,2.28907439,653.47,653.4,1.136]
[1750128369094,3.42786302,653.47,653.4,1.136]
[1750128369289,2.81158474,653.46,653.4,1.136]
[1750128369495,2.28649721,653.45,653.4,1.136]
[1750128370195,3.42528584,653.45,653.4,1.136]
[1750128370395,2.28649721,653.44,653.4,1.136]
[1750128370600,0.99130103,653.43,653.4,1.136]
[1750128370800,2.81153528,653.45,653.4,1.136]
[1750128371000,2.28644902,653.45,653.4,1.136]
[1750128371397,0.99130103,653.45,653.4,1.136]
[1750128371596,3.94995776,653.46,653.4,1.136]
[1750128371797,2.28618419,653.45,653.4,1.136]
[1750128371997,0.99130103,653.45,653.4,1.136]
[1750128372196,1.13878863,653.44,653.4,1.136]
[1750128372395,1.13878863,653.41,653.4,1.136]
[1750128372600,2.81092095,653.43,653.4,1.136]
[1750128372897,1.13953759,653.41,653.4,1.136]
[1750128373101,2.81082645,653.41,653.4,1.136]
[1750128373402,3.950063,653.41,653.4,1.136]
[1750128373602,2.81080601,653.41,653.4,1.136]
[1750128373797,0.52491902,653.41,653.4,1.136]
[1750128374001,1.51592412,653.51,653.4,1.136]
[1750128374198,0.9910051,653.5,653.4,1.136]
[1750128374403,0.9910051,653.49,653.4,1.136]
[1750128374697,0.52491902,653.51,653.4,1.136]
[1750128374698,0.9910051,653.48,653.4,1.136]
[1750128374903,0.99034783,653.47,653.4,1.136]
[1750128375098,0.99034783,653.46,653.4,1.136]
[1750128375399,0.99034783,653.45,653.4,1.136]
[1750128375602,0.99034783,653.44,653.4,1.136]
[1750128375902,2.80902902,653.46,653.4,1.136]
[1750128376098,2.80902902,653.45,653.4,1.136]
[1750128376303,1.13828876,653.41,653.4,1.136]
[1750128377001,3.94731778,653.41,653.4,1.136]
[1750128377202,2.80902902,653.41,653.4,1.136]
[1750128377408,1.51526685,653.41,653.4,1.136]
[1750128377608,2.80733758,653.41,653.4,1.136]
[1750128379007,1.81744945,653.41,653.4,1.136]
[1750128379312,2.2830413,653.42,653.4,1.136]
[1750128380609,2.28273999,653.41,653.4,1.136]
[1750128380805,1.29315317,653.41,653.4,1.136]
[1750128381003,2.28273999,653.41,653.4,1.136]
[1750128381206,2.80687245,653.41,653.4,1.136]
[1750128382611,2.80687245,653.41,653.39,1.468]
[1750128382812,2.28273999,653.41,653.39,1.468]
[1750128383308,2.28148886,653.4,653.39,1.468]
[1750128383509,1.5131609,653.4,653.39,1.468]
[1750128383709,2.80543182,653.4,653.39,1.468]
[1750128384614,1.5131609,653.4,653.39,1.468]
[1750128384814,0.52394296,653.4,653.39,1.468]
[1750128385211,2.28148886,653.41,653.39,1.468]
[1750128385812,2.28094559,653.4,653.39,1.468]
[1750128386018,2.28094559,653.41,653.39,1.468]
[1750128386211,0.52379829,653.4,653.39,1.468]
[1750128386416,4.3234121,653.49,653.39,1.468]
[1750128386712,2.80468748,653.48,653.39,1.468]
[1750128386911,1.51278073,653.47,653.39,1.468]
[1750128387116,0.98898244,653.46,653.39,1.468]
[1750128387311,0.98898244,653.45,653.39,1.468]
[1750128387611,0.98898244,653.46,653.39,1.468]
[1750128387813,0.98898244,653.45,653.39,1.468]
[1750128388216,0.98898244,653.44,653.39,1.468]
[1750128388417,0.98898244,653.45,653.39,1.468]
[1750128388613,0.98898244,653.44,653.39,1.468]
[1750128389112,0.9885285,653.44,653.39,1.468]
[1750128389312,0.9885285,653.43,653.39,1.468]
[1750128389617,1.81492245,653.43,653.39,1.468]
[1750128389813,1.51210701,653.45,653.39,1.468]
[1750128390017,0.9885285,653.44,653.39,1.468]
[1750128390819,0.9885285,653.43,653.39,1.468]
[1750128391117,0.9885285,653.44,653.39,1.468]
[1750128391317,0.9885285,653.43,653.39,1.468]
[1750128391815,0.52357851,653.44,653.39,1.468]
[1750128392114,0.98818995,653.43,653.39,1.468]
[1750128392319,1.51176846,653.44,653.39,1.468]
[1750128392614,0.98818995,653.43,653.39,1.468]
[1750128392818,1.51176846,653.44,653.39,1.468]
[1750128393215,1.51176846,653.46,653.39,1.468]
[1750128393419,0.98818995,653.45,653.39,1.468]
[1750128393619,0.98818995,653.44,653.39,1.468]
[1750128393918,0.98818995,653.43,653.39,1.468]
[1750128394118,0.98818995,653.45,653.39,1.468]
[1750128394318,0.98818995,653.44,653.39,1.468]
[1750128394616,1.81389304,653.46,653.39,1.468]
[1750128394815,0.98797042,653.45,653.39,1.468]
[1750128395020,1.81389304,653.47,653.39,1.468]
[1750128395021,0.98797042,653.44,653.39,1.468]
[1750128395320,0.98797042,653.45,653.39,1.468]
[1750128395616,0.98797042,653.44,653.39,1.468]
[1750128395818,0.98797042,653.45,653.39,1.468]
[1750128396016,0.98797042,653.44,653.39,1.468]
[1750128396219,0.98797042,653.43,653.39,1.468]
[1750128396418,0.98797042,653.42,653.39,1.468]
[1750128396616,1.51125197,653.45,653.39,1.468]
[1750128396821,0.98797042,653.44,653.39,1.468]
[1750128397018,0.98797042,653.43,653.39,1.468]
[1750128397218,0.98797042,653.42,653.39,1.468]
[1750128397522,0.98751889,653.41,653.39,1.468]
[1750128397722,0.98751889,653.4,653.39,1.468]
[1750128400220,2.79986089,653.4,653.39,1.468]
[1750128400821,1.51018576,653.4,653.39,1.468]
[1750128401017,1.51018576,653.4,652.56,0.26636662]
[1750128401221,1.13493312,653.32,652.56,0.26636662]
[1750128401422,1.13493312,653.33,652.56,0.26636662]
[1750128402822,1.13493312,653.32,652.56,0.26636662]
[1750128403024,2.27906501,653.55,652.56,0.26636662]
[1750128403025,1.13493312,653.35,652.56,0.26636662]
[1750128403221,1.13493312,653.32,652.56,0.26636662]
[1750128403626,1.13493312,653.27,652.24,1.52615456]
[1750128403823,1.13493312,653.27,652.46,0.26650635]
[1750128404320,1.13493312,653.28,652.46,0.26650635]
[1750128404520,1.13493312,653.27,652.46,0.26650635]
[1750128405222,1.13493312,653.27,652.47,1.476]
[1750128405426,1.13493312,653.27,652.48,1.12]
[1750128406125,1.13493312,653.27,652.49,1.047]
[1750128406328,1.13493312,653.28,652.49,2.555]
[1750128406729,1.13493312,653.27,652.49,2.555]
[1750128407126,1.13493312,653.28,652.49,2.555]
[1750128407929,3.91942461,653.28,652.49,2.555]
[1750128408130,2.78449149,653.27,652.49,2.555]
[1750128408332,0.52190716,653.26,652.49,2.555]
[1750128412833,1.13392597,653.28,652.49,2.555]
[1750128413032,1.13392597,653.26,652.49,2.555]
[1750128413632,1.13392597,653.25,652.49,2.555]
[1750128414434,1.13392597,653.24,652.49,2.555]
[1750128415739,1.13392597,653.21,652.49,2.555]
[1750128417436,1.13392597,653.22,652.49,2.555]
[1750128419039,1.13392597,653.21,652.49,2.555]
[1750128419640,3.92021607,653.21,652.49,2.555]
[1750128419843,2.7862901,653.2,652.49,2.555]
[1750128420039,2.26395441,653.19,652.49,2.555]
[1750128420239,2.26395441,653.18,652.49,2.555]
[1750128420543,2.78646842,653.17,652.49,2.555]
[1750128420740,1.13392597,653.14,652.49,2.555]
[1750128421043,1.13392597,653.11,652.49,2.555]
[1750128421238,3.8078585,653.89,652.49,2.555]
[1750128421239,1.13392597,653.09,652.49,2.555]
[1750128421442,1.13392597,653.03,652.49,2.555]
[1750128421639,1.13392597,653.04,652.49,2.555]
[1750128422143,1.13392597,653.03,652.49,2.555]
[1750128422440,1.13392597,652.98,652.49,2.555]
[1750128423139,1.13392597,652.92,652.49,2.555]
[1750128423543,1.13392597,652.93,652.49,2.555]
[1750128424145,1.13392597,652.93,652.49,1.508]
[1750128424341,1.13392597,652.94,652.49,1.508]
[1750128424941,3.91774319,652.94,652.49,1.508]
[1750128425243,2.78424444,652.93,652.49,1.508]
[1750128425546,0.5219418,652.92,652.49,1.508]
[1750128425748,1.80504622,652.92,652.49,1.508]
[1750128426043,0.5219418,652.93,652.49,1.508]
[1750128426948,0.5219418,652.94,652.49,1.508]
[1750128427645,2.78424444,652.94,652.49,1.508]
[1750128427847,0.97919822,652.93,652.5,1.389]
[1750128428149,2.78111304,652.96,652.5,1.389]
[1750128428353,0.52129578,652.95,652.51,1.447]
[1750128430252,1.80314352,652.95,652.51,1.447]
[1750128430452,0.52129578,652.95,652.51,1.447]
[1750128430653,3.91467483,652.95,652.51,1.447]
[1750128430953,2.78074886,652.94,652.51,1.447]
[1750128431153,0.52123039,652.93,652.51,1.447]
[1750128432649,0.52123039,652.93,652.52,1.82]
[1750128433450,0.52107727,652.93,652.52,1.82]
[1750128433951,1.49863586,652.93,652.52,1.82]
[1750128434254,2.77992484,652.94,652.52,1.82]
[1750128434454,0.52107677,652.93,652.52,1.82]
[1750128434655,2.77992484,652.93,652.52,1.82]
[1750128434857,0.52107677,652.92,652.52,1.82]
[1750128435050,1.65500274,652.92,652.52,1.82]
[1750128435253,3.91317716,652.92,652.52,1.82]
[1750128435454,3.91317716,652.91,652.52,1.82]
[1750128435656,2.77925119,652.9,652.52,1.82]
[1750128435854,0.52107677,652.89,652.52,1.82]
[1750128436153,1.49729029,652.89,652.52,1.82]
[1750128436453,0.52037405,652.89,652.52,1.82]
[1750128437358,0.52004658,652.89,652.52,1.82]
[1750128437553,0.52004658,652.89,652.53,1.437]
[1750128438758,0.52004658,652.9,652.53,1.437]
[1750128438956,1.49561057,652.9,652.53,1.437]
[1750128439153,0.52004658,652.9,652.53,1.437]
[1750128439862,0.51990305,652.9,652.53,1.437]
[1750128441861,0.51992074,652.9,652.53,1.437]
[1750128442861,2.76797312,652.9,652.53,1.437]
[1750128443062,2.76797312,652.89,652.53,1.437]
[1750128443262,2.76797312,652.88,652.53,1.437]
[1750128443464,2.76797312,652.87,652.53,1.437]
[1750128443663,2.76797312,652.86,652.53,1.437]
[1750128443966,2.76795109,652.85,652.53,1.437]
[1750128444166,2.76795109,652.84,652.53,1.437]
[1750128444362,2.76794508,652.83,652.53,1.437]
[1750128444566,2.76780751,652.82,652.53,1.437]
[1750128444866,2.2479148,652.81,652.53,1.437]
[1750128445066,2.2479148,652.8,652.53,1.437]
[1750128445262,2.2479148,652.79,652.53,1.437]
[1750128445561,0.97547332,652.78,652.53,1.437]
[1750128445766,2.76813919,652.86,652.53,1.437]
[1750128445966,2.76718502,652.85,652.53,1.437]
[1750128446166,3.8078585,653.57,652.53,1.437]
[1750128446167,0.97506072,652.84,652.53,1.437]
[1750128446366,1.13392597,652.93,652.53,1.437]
[1750128446367,2.76725429,652.92,652.53,1.437]
[1750128446666,0.51984918,652.91,652.53,1.437]
[1750128447665,2.76754993,652.92,652.53,1.437]
[1750128447865,2.76754993,652.91,652.53,1.437]
[1750128448063,2.76754993,652.9,652.53,1.437]
[1750128448263,2.76754993,652.89,652.53,1.437]
[1750128448562,2.76754993,652.88,652.53,1.437]
[1750128448863,1.13392597,652.93,652.53,1.437]
[1750128448864,2.24770075,652.87,652.53,1.437]
[1750128449063,2.24770075,652.86,652.53,1.437]
[1750128449365,1.27248539,652.85,652.54,1.77]
[1750128449564,2.76743148,652.92,652.54,1.77]
[1750128449768,2.76743148,652.91,652.54,1.77]
[1750128449966,2.76743148,652.9,652.54,1.77]
[1750128450165,2.76743148,652.89,652.54,1.77]
[1750128450365,2.76755999,652.88,652.54,1.77]
[1750128450570,2.24766072,652.87,652.54,1.77]
[1750128450869,2.24766072,652.86,652.54,1.77]
[1750128451064,2.24766072,652.85,652.54,1.77]
[1750128451269,0.97504682,652.84,652.54,1.77]
[1750128451469,2.76740353,652.92,652.54,1.77]
[1750128451669,0.51989736,652.91,652.54,1.77]
[1750128452670,2.76740353,652.91,652.54,1.77]
[1750128452868,2.76740353,652.9,652.54,1.77]
[1750128453071,2.76803913,652.89,652.54,1.77]
[1750128453268,2.24805002,652.88,652.54,1.77]
[1750128453572,2.24805002,652.87,652.54,1.77]
[1750128453772,2.24805002,652.86,652.54,1.77]
[1750128453974,2.24805002,652.85,652.54,1.77]
[1750128454269,0.97535845,652.84,652.54,1.77]
[1750128454571,2.76790625,652.92,652.54,1.77]
[1750128454768,2.76790625,652.91,652.54,1.77]
[1750128455069,2.76790625,652.9,652.54,1.77]
[1750128455274,2.76790625,652.89,652.54,1.77]
[1750128455468,2.24795445,652.88,652.54,1.77]
[1750128455767,2.24795445,652.87,652.54,1.77]
[1750128456068,2.76789286,652.86,652.54,1.77]
[1750128456272,1.272596,652.85,652.54,1.77]
[1750128456473,0.51993841,652.86,652.54,1.77]
[1750128456671,1.272596,652.89,652.54,1.77]
[1750128457373,1.13392597,652.9,652.54,1.77]
[1750128457769,1.13392597,652.9,652.55,1.171]
[1750128458868,2.27906501,653.16,652.55,1.171]
[1750128458869,1.13392597,652.89,652.55,1.171]
[1750128459372,1.13392597,652.88,652.55,1.171]
[1750128461771,1.13392597,652.91,652.55,1.171]
[1750128462876,1.13392597,652.97,652.55,1.171]
[1750128463172,2.40652197,653.03,652.55,1.171]
[1750128463375,2.40652197,653.02,652.55,1.171]
[1750128463572,1.272596,653.01,652.55,1.171]
[1750128463772,1.272596,653.02,652.55,1.171]
[1750128464177,1.272596,653.04,652.55,1.171]
[1750128464377,2.40652197,653.07,652.56,1.195]
[1750128464674,1.272596,653.06,652.56,1.195]
[1750128464873,1.272596,653.07,652.56,1.195]
[1750128465076,1.272596,653.08,652.56,1.195]
[1750128465573,1.13392597,653.09,652.56,1.195]
[1750128465973,1.13392597,653.08,652.56,1.195]
[1750128466175,1.13392597,653.09,652.56,1.195]
[1750128466577,1.13392597,653.08,652.56,1.195]
[1750128466778,1.13392597,653.09,652.56,1.195]
[1750128466974,1.13392597,653.08,652.57,1.274]
[1750128469383,3.92284399,653.08,652.57,1.274]
[1750128469676,2.78891802,653.07,652.57,1.274]
[1750128469877,0.52210858,653.06,652.57,1.274]
[1750128470981,2.7903038,653.06,652.57,1.274]
[1750128471281,2.79030398,653.05,652.57,1.274]
[1750128471577,2.79030398,653.04,652.57,1.274]
[1750128471881,2.26793728,653.03,652.57,1.274]
[1750128472081,0.98835762,653.02,652.57,1.274]
[1750128472278,2.79126837,653.06,652.57,1.274]
[1750128472483,0.522646,653.05,652.57,1.274]
[1750128472984,2.79126837,653.05,652.57,1.274]
[1750128473280,0.522646,653.04,652.57,1.274]
[1750128473684,1.65657197,653.04,652.57,1.274]
[1750128473980,3.92581742,653.04,652.57,1.274]
[1750128474178,2.79189145,653.03,652.57,1.274]
[1750128474383,0.52267867,653.02,652.57,1.274]
[1750128474582,2.79189145,653.02,652.57,1.274]
[1750128474784,0.52267867,653.01,652.57,1.274]
[1750128474980,2.79189145,653.01,652.57,1.274]
[1750128475180,0.52267867,653.0,652.57,1.274]
[1750128475481,2.79189145,653.0,652.57,1.274]
[1750128475682,0.52267867,652.99,652.58,1.415]
[1750128476581,1.13392597,653.01,652.58,1.415]
[1750128477682,1.13392597,653.0,652.58,1.415]
[1750128478285,1.13392597,652.99,652.58,1.415]
[1750128479382,1.13392597,652.98,652.58,1.415]
[1750128482184,1.13392597,652.98,652.59,1.137]
[1750128484386,1.13392597,652.99,652.59,1.137]
[1750128486187,3.93109218,652.99,652.59,1.137]
[1750128486386,2.79716621,652.98,652.59,1.137]
[1750128486584,2.27351506,652.98,652.59,1.137]
[1750128486787,0.99078523,652.98,652.59,1.137]
[1750128486989,2.79715594,652.99,652.59,1.137]
[1750128487285,0.99078523,652.99,652.59,1.137]
[1750128487481,1.13392597,653.01,652.59,1.137]
[1750128488985,1.13392597,653.0,652.59,1.137]
[1750128489789,3.931074,653.0,652.59,1.137]
[1750128489990,2.79714803,652.99,652.59,1.137]
[1750128490189,2.27352896,652.99,652.59,1.137]
[1750128490486,0.99078523,652.99,652.59,1.137]
[1750128490690,1.13392597,653.0,652.59,1.137]
[1750128490890,3.93080905,653.0,652.59,1.137]
[1750128491090,2.79688308,652.99,652.59,1.137]
[1750128491286,0.99061094,652.98,652.59,1.137]
[1750128491487,2.79664939,653.0,652.59,1.137]
[1750128491690,0.52355185,652.99,652.59,1.137]
[1750128491892,0.52355185,652.99,652.6,1.614]
[1750128496694,2.27341825,653.0,652.6,1.614]
[1750128496897,0.9910903,652.99,652.6,1.614]
[1750128497196,1.13392597,653.02,652.6,1.614]
[1750128497197,2.79808657,653.01,652.6,1.614]
[1750128497393,0.9910903,653.01,652.6,1.614]
[1750128497696,2.80156514,653.05,652.6,1.614]
[1750128497892,2.27766491,653.05,652.6,1.614]
[1750128498493,0.9910903,653.04,652.6,1.614]
[1750128498693,2.80263943,653.06,652.6,1.614]
[1750128498894,0.52386179,653.05,652.6,1.614]
[1750128499298,2.27877764,653.06,652.6,1.614]
[1750128499500,0.52382439,653.05,652.6,1.614]
[1750128499700,0.52382398,653.05,652.6,1.614]
[1750128501900,2.80244183,653.05,652.6,1.614]
[1750128502098,0.99222693,653.04,652.6,1.614]
[1750128502300,2.8024886,653.06,652.61,1.468]
[1750128502496,0.52389145,653.05,652.61,1.468]
[1750128503901,2.27865058,653.06,652.61,1.468]
[1750128504198,0.52386349,653.05,652.61,1.468]
[1750128504502,2.27865058,653.06,652.61,1.468]
[1750128504999,0.99222693,653.05,652.61,1.468]
[1750128505202,1.13392597,653.08,652.61,1.468]
[1750128507799,1.13392597,653.08,652.62,1.043]
[1750128508003,3.93677715,653.08,652.62,1.043]
[1750128508202,2.80348541,653.07,652.62,1.043]
[1750128508397,0.52402053,653.06,652.62,1.043]
[1750128508602,2.80348541,653.06,652.62,1.043]
[1750128508900,2.27946488,653.06,652.62,1.043]
[1750128509904,0.99259893,653.06,652.62,1.043]
[1750128510304,0.99259893,653.1,652.63,1.331]
[1750128510502,2.8035803,653.13,652.63,1.331]
[1750128510805,2.27954217,653.13,652.63,1.331]
[1750128511105,0.99259893,653.12,652.63,1.331]
[1750128511303,2.80381367,653.14,652.63,1.331]
[1750128511503,0.52410449,653.13,652.63,1.331]
[1750128512004,2.27970918,653.14,652.63,1.331]
[1750128512305,0.99259893,653.14,652.63,1.331]
[1750128512504,1.13392597,653.16,652.63,1.331]
[1750128513004,1.13392597,653.15,652.63,1.331]
[1750128513205,1.13392597,653.16,652.63,1.331]
[1750128513406,1.13392597,653.15,652.63,1.331]
[1750128513708,1.4004313,653.17,652.63,1.331]
[1750128514405,1.13392597,653.16,652.63,1.331]
[1750128514700,1.13392597,653.16,652.64,1.261]
[1750128515406,3.93789444,653.16,652.64,1.261]
[1750128515605,2.80396847,653.15,652.64,1.261]
[1750128515808,2.27986557,653.15,652.64,1.261]
[1750128516303,3.41379154,653.15,652.64,1.261]
[1750128516506,0.99267282,653.14,652.64,1.261]
[1750128516806,1.13392597,653.16,652.64,1.261]
[1750128517102,1.13392597,653.15,652.64,1.261]
[1750128517302,1.13392597,653.13,652.64,1.261]
[1750128517507,1.13392597,653.14,652.64,1.261]
[1750128518404,1.13392597,653.13,652.64,1.261]
[1750128518804,1.13392597,653.14,652.64,1.261]
[1750128519510,1.13392597,653.12,652.64,1.261]
[1750128519708,0.26650533,653.17,652.64,1.261]
[1750128519709,1.13392597,653.11,652.64,1.261]
[1750128520010,1.13392597,653.1,652.64,1.261]
[1750128520406,1.13392597,653.09,652.64,1.261]
[1750128521503,1.13392597,653.08,652.64,1.261]
[1750128521905,0.5243033,653.08,652.64,1.261]
[1750128522104,2.80796199,653.08,652.64,1.261]
[1750128522309,0.52485195,653.07,652.64,1.261]
[1750128522710,2.80796199,653.07,652.64,1.261]
[1750128522911,0.52485195,653.06,652.64,1.261]
[1750128523508,2.12810108,653.05,652.64,1.261]
[1750128523711,1.81378688,653.04,652.64,1.261]
[1750128523908,2.80796199,653.04,652.64,1.261]
[1750128524209,2.28311004,653.04,652.64,1.261]
[1750128524409,0.5251965,653.03,652.64,1.261]
[1750128524911,0.52519521,653.03,652.64,1.261]
[1750128525213,2.80895545,653.03,652.64,1.261]
[1750128525409,2.28376024,653.03,652.64,1.261]
[1750128526010,0.52520959,653.02,652.64,1.261]
[1750128526513,2.80896983,653.02,652.64,1.261]
[1750128526812,2.28376024,653.02,652.64,1.261]
[1750128527012,0.99482531,653.01,652.64,1.261]
[1750128527209,2.80985579,653.03,652.64,1.261]
[1750128527509,0.52521253,653.02,652.64,1.261]
[1750128527910,2.42374392,653.03,652.64,1.261]
[1750128528216,2.80981595,653.02,652.64,1.261]
[1750128528414,0.99484471,653.01,652.64,1.261]
[1750128528714,2.288182,653.02,652.64,1.261]
[1750128529410,0.99484471,653.02,652.64,1.261]
[1750128529713,2.8132959,653.03,652.64,1.261]
[1750128529913,2.28815508,653.03,652.64,1.261]
[1750128530914,0.99678293,653.02,652.64,1.261]
[1750128531114,2.81518635,653.03,652.64,1.261]
[1750128531311,2.29005948,653.03,652.64,1.261]
[1750128531515,1.29327655,653.03,652.64,1.261]
[1750128531714,1.13392597,653.04,652.64,1.261]
[1750128532711,1.13392597,653.06,652.64,1.261]
[1750128532911,1.13392597,653.07,652.64,1.261]
[1750128533408,3.94909547,653.07,652.64,1.261]
[1750128533612,2.81526822,653.06,652.64,1.261]
[1750128533813,2.29014063,653.06,652.64,1.261]
[1750128535412,3.4240666,653.06,652.64,1.261]
[1750128535619,2.29014063,653.05,652.63,1.331]
[1750128535819,2.29014063,653.05,652.65,1.126]
[1750128538927,2.29014063,653.05,652.66,1.707]
[1750128539225,0.99680831,653.04,652.66,1.707]
[1750128539425,2.29014618,653.04,652.66,1.707]
[1750128540625,0.99680831,653.04,652.66,1.707]
[1750128540826,3.94939812,653.06,652.66,1.707]
[1750128541020,2.2902815,653.05,652.66,1.707]
[1750128541726,0.99680831,653.05,652.66,1.707]
[1750128542027,2.81554744,653.06,652.66,1.707]
[1750128542228,2.29032863,653.06,652.66,1.707]
[1750128544528,2.81625437,653.05,652.66,1.707]
[1750128544725,2.29092805,653.05,652.66,1.707]
[1750128545225,0.99714339,653.04,652.67,1.473]
[1750128545430,2.8162462,653.06,652.67,1.473]
[1750128545627,2.29092228,653.06,652.67,1.473]
[1750128545928,3.42484825,653.06,652.67,1.473]
[1750128546128,2.29092228,653.05,652.67,1.473]
[1750128546928,0.99714339,653.05,652.67,1.473]
[1750128547127,2.81639448,653.05,652.67,1.473]
[1750128547428,0.99722027,653.04,652.67,1.473]
[1750128547626,2.81647136,653.05,652.67,1.473]
[1750128547830,2.29110453,653.05,652.67,1.473]
[1750128548829,0.99722027,653.04,652.67,1.473]
[1750128550331,2.81661944,653.05,652.67,1.473]
[1750128550527,0.99722027,653.04,652.68,1.652]
[1750128551333,0.99722027,653.03,652.68,1.652]
[1750128551828,2.81690557,653.04,652.68,1.652]
[1750128552032,0.99722027,653.03,652.68,1.652]
[1750128552332,0.99722027,653.04,652.68,1.652]
[1750128552530,2.81688887,653.08,652.68,1.652]
[1750128552836,1.52270784,653.07,652.68,1.652]
[1750128553029,1.52293464,653.07,652.68,1.652]
[1750128553734,2.29162648,653.08,652.68,1.652]
[1750128553931,1.52293134,653.07,652.68,1.652]
[1750128554132,0.99744788,653.06,652.68,1.652]
[1750128554333,0.99744788,653.05,652.68,1.652]
[1750128554930,1.52293134,653.06,652.68,1.652]
[1750128555736,0.99765679,653.06,652.68,1.652]
[1750128556033,0.99765679,653.05,652.68,1.652]
[1750128556232,0.99765679,653.04,652.68,1.652]
[1750128556532,0.99765679,653.05,652.68,1.652]
[1750128556732,0.99765679,653.04,652.68,1.652]
[1750128556936,0.99765679,653.03,652.68,1.652]
[1750128557136,0.99765679,653.05,652.68,1.652]
[1750128557336,0.99765679,653.04,652.68,1.652]
[1750128557534,0.99765679,653.03,652.68,1.652]
[1750128557837,0.99803461,653.04,652.68,1.652]
[1750128558033,0.99803461,653.03,652.68,1.652]
[1750128558238,0.99803461,653.04,652.68,1.652]
[1750128558433,0.99803461,653.03,652.68,1.652]
[1750128558737,0.9979063,653.04,652.68,1.652]
[1750128559338,0.9979063,653.03,652.68,1.652]
[1750128559541,0.9979063,653.04,652.68,1.652]
[1750128559738,0.9979063,653.03,652.68,1.652]
[1750128559935,0.9979063,653.04,652.68,1.652]
[1750128560139,0.9979063,653.03,652.68,1.652]
[1750128560339,0.9979063,653.04,652.68,1.652]
[1750128560639,0.9979063,653.03,652.68,1.652]
[1750128560838,0.9979063,653.04,652.68,1.652]
[1750128561038,0.9979063,653.03,652.68,1.652]
[1750128561239,0.9979063,653.04,652.68,1.652]
[1750128561438,0.99506373,653.03,652.68,1.652]
[1750128561734,0.99506373,653.04,652.68,1.652]
[1750128561938,1.52113249,653.05,652.68,1.652]
[1750128562138,2.1289897,653.04,652.68,1.652]
[1750128562339,2.81590206,653.03,652.68,1.652]
[1750128562542,0.99506373,653.02,652.68,1.652]
[1750128562738,0.99506373,653.01,652.68,1.652]
[1750128563038,0.99506373,653.0,652.68,1.652]
[1750128563235,0.99506373,653.01,652.68,1.652]
[1750128563436,0.99506373,653.0,652.68,1.652]
[1750128563634,1.52119402,653.02,652.68,1.652]
[1750128563840,0.99506373,653.01,652.68,1.652]
[1750128564035,0.99506373,653.0,652.68,1.652]
[1750128564336,0.99506373,653.01,652.68,1.652]
[1750128564533,0.99506373,653.0,652.68,1.652]
[1750128564737,0.99506373,652.99,652.68,1.652]
[1750128564937,0.99506373,653.01,652.68,1.652]
[1750128565235,0.99506373,653.0,652.68,1.652]
[1750128565440,0.99506373,652.99,652.68,1.652]
[1750128565736,0.99506373,652.98,652.68,1.652]
[1750128565936,0.99506373,653.01,652.68,1.652]